bitfinex/quotes_BTCUSD_20241119
["timestamp","ask_amount","ask_price","bid_price","bid_amount"]
[1732039422724,0.107755,92804.0,92797.0,0.107761]
[1732039422947,0.107755,92804.0,92798.0,0.10776]
[1732039423152,0.215504,92806.0,92797.0,0.107761]
[1732039423358,0.107756,92802.0,92797.0,0.107761]
[1732039424002,0.215489,92812.0,92795.0,0.107763]
[1732039424003,0.107757,92801.0,92795.0,0.107763]
[1732039424232,0.107757,92801.0,92793.0,0.107766]
[1732039424445,0.107757,92801.0,92796.0,0.107763]
[1732039424657,0.21551,92803.0,92785.0,0.107774]
[1732039424885,0.207102,92807.0,92778.0,0.0117114]
[1732039425110,0.107759,92799.0,92793.0,0.107765]
[1732039425325,0.107762,92797.0,92793.0,0.107765]
[1732039425538,0.215514,92801.0,92781.0,0.10778]
[1732039425739,0.215514,92801.0,92782.0,0.107779]
[1732039425945,0.107764,92796.0,92791.0,0.107768]
[1732039426386,0.215517,92800.0,92790.0,0.107769]
[1732039426387,0.215517,92800.0,92793.0,0.107766]
[1732039426608,0.21551,92803.0,92754.0,0.107811]
[1732039426609,0.107783,92779.0,92754.0,0.107811]
[1732039426873,0.107783,92779.0,92736.0,0.0822]
[1732039426874,0.53502607,92779.0,92736.0,0.0822]
[1732039427085,0.107799,92765.0,92749.0,0.1095258]
[1732039427299,0.21686155,92765.0,92749.0,0.0017088]
[1732039427523,0.31686155,92765.0,92749.0,0.0017088]
[1732039428203,0.36069953,92765.0,92749.0,0.1095258]
[1732039428408,0.36069953,92765.0,92749.0,0.0017088]
[1732039428617,0.36069953,92765.0,92750.0,0.107816]
[1732039428823,0.36069953,92765.0,92749.0,0.0017088]
[1732039429031,0.36069953,92765.0,92764.0,0.3258]
[1732039430157,0.36069953,92765.0,92764.0,0.4336]
[1732039430158,0.04383798,92765.0,92764.0,0.4336]
[1732039430368,0.15163698,92765.0,92764.0,0.3258]
[1732039430580,0.107799,92765.0,92764.0,0.3258]
[1732039430790,0.21686155,92765.0,92764.0,0.3258]
[1732039432265,0.1,92776.0,92764.0,0.3258]
[1732039432477,0.107797,92767.0,92764.0,0.3258]
[1732039432694,0.1,92773.0,92764.0,0.3258]
[1732039432903,0.1,92776.0,92764.0,0.3258]
[1732039433117,0.04457156,92777.0,92764.0,0.3258]
[1732039433118,0.04457156,92777.0,92770.0,0.107793]
[1732039433335,0.215556,92783.0,92771.0,0.107791]
[1732039433543,0.107787,92776.0,92771.0,0.107176]
[1732039433748,0.107787,92776.0,92771.0,0.214967]
[1732039434010,0.1,92780.0,92768.0,0.107794]
[1732039434219,0.10906255,92779.0,92765.0,0.107798]
[1732039434404,0.10906255,92779.0,92764.0,0.3258]
[1732039434677,0.215581,92773.0,92764.0,0.4336]
[1732039435101,0.107793,92770.0,92765.0,0.107798]
[1732039435981,0.107794,92769.0,92764.0,0.4336]
[1732039436190,0.107794,92769.0,92764.0,0.433599]
[1732039436636,0.107794,92769.0,92765.0,0.107798]
[1732039437430,0.215586,92770.0,92764.0,0.3258]
[1732039437638,0.32338,92770.0,92764.0,0.3258]
[1732039437791,0.215575,92776.0,92764.0,0.3258]
[1732039437997,0.107799,92765.0,92764.0,0.3258]
[1732039439852,0.215596,92767.0,92764.0,0.3258]
[1732039440061,0.107799,92765.0,92764.0,0.3258]
[1732039441764,0.107799,92765.0,92764.0,0.3275122]
[1732039443458,0.151532,92765.0,92764.0,0.3275122]
[1732039444333,0.043733,92765.0,92764.0,0.3275122]
[1732039444780,0.107797,92767.0,92764.0,0.3275122]
[1732039445001,0.10906255,92766.0,92764.0,0.3275122]
[1732039445484,0.107799,92765.0,92764.0,0.3275122]
[1732039447253,0.21686155,92765.0,92764.0,0.3275122]
[1732039450943,0.36118024,92765.0,92764.0,0.3275122]
[1732039452918,0.13480622,92778.0,92764.0,0.3275122]
[1732039452919,0.1,92778.0,92764.0,0.3275122]
[1732039453134,0.0478561,92801.0,92765.0,0.10906255]
[1732039453340,0.04264826,92780.0,92766.0,0.0471]
[1732039453597,0.01,92796.0,92765.0,0.118579]
[1732039453817,0.01,92796.0,92764.0,0.3275122]
[1732039453818,0.107795,92769.0,92764.0,0.3275122]
[1732039454068,0.107798,92766.0,92764.0,0.3275122]
[1732039454285,0.21686155,92765.0,92764.0,0.3275122]
[1732039454535,0.107794,92770.0,92764.0,0.3275122]
[1732039454650,0.04426184,92770.0,92764.0,0.3275122]
[1732039454899,0.1,92782.0,92764.0,0.3275122]
[1732039455101,0.1,92782.0,92769.0,0.107793]
[1732039455102,0.107788,92775.0,92769.0,0.107793]
[1732039455337,0.1,92780.0,92765.0,0.118579]
[1732039455550,0.10906255,92778.0,92776.0,0.107785]
[1732039455763,0.10906255,92778.0,92775.0,0.107787]
[1732039455977,0.10906255,92778.0,92776.0,0.107786]
[1732039456187,0.10906255,92778.0,92764.0,0.3275122]
[1732039456407,0.21684655,92778.0,92765.0,0.118579]
[1732039456623,0.21684655,92778.0,92774.0,0.107788]
[1732039456624,0.10906255,92778.0,92774.0,0.107788]
[1732039456827,0.04467726,92780.0,92779.0,0.107783]
[1732039457041,0.107773,92788.0,92782.0,0.107778]
[1732039457255,0.107773,92788.0,92783.0,0.107777]
[1732039457722,0.107773,92788.0,92784.0,0.107777]
[1732039457948,0.215541,92790.0,92769.0,0.082]
[1732039458213,0.15159513,92799.0,92775.0,0.226353]
[1732039458434,0.107762,92797.0,92775.0,0.237132]
[1732039458648,0.107762,92797.0,92775.0,0.226353]
[1732039458862,0.107762,92797.0,92793.0,0.107766]
[1732039459087,0.2163731,92801.0,92774.0,0.12480622]
[1732039459088,0.2163731,92801.0,92791.0,0.118545]
[1732039459317,0.107762,92797.0,92792.0,0.107767]
[1732039459967,0.107762,92797.0,92793.0,0.107766]
[1732039460181,0.1,92798.0,92774.0,0.12480622]
[1732039460388,0.1,92798.0,92748.0,0.120599]
[1732039460389,0.215524,92797.0,92787.0,0.107772]
[1732039460612,0.107768,92792.0,92787.0,0.107772]
[1732039460849,0.32458755,92797.0,92789.0,0.107771]
[1732039460850,0.107766,92794.0,92789.0,0.107771]
[1732039461097,0.107767,92793.0,92789.0,0.107771]
[1732039462264,0.107767,92793.0,92787.0,0.107772]
[1732039462538,0.107767,92793.0,92788.0,0.107772]
[1732039463646,0.04545636,92801.0,92800.0,0.107758]
[1732039463876,0.04545636,92801.0,92800.0,0.10659935]
[1732039464094,0.04545636,92801.0,92800.0,0.10489262]
[1732039464517,0.04545636,92801.0,92796.0,0.118539]
[1732039464725,0.04545636,92801.0,92800.0,0.107758]
[1732039465396,0.04545636,92801.0,92798.0,0.10776]
[1732039465623,0.10776,92798.0,92791.0,0.107768]
[1732039465832,0.04545636,92801.0,92791.0,0.107768]
[1732039465833,0.107758,92800.0,92792.0,0.3233]
[1732039466055,0.04545636,92801.0,92798.0,0.10776]
[1732039466288,0.04545636,92801.0,92792.0,0.3233]
[1732039466538,0.04545636,92801.0,92799.0,0.107759]
[1732039466970,0.04545636,92801.0,92797.0,0.107761]
[1732039467173,0.26097236,92801.0,92792.0,0.3233]
[1732039467386,0.215519,92799.0,92792.0,0.431067]
[1732039467632,0.107759,92799.0,92795.0,0.107763]
[1732039467877,0.107759,92799.0,92796.0,0.32329]
[1732039468106,0.26097236,92801.0,92796.0,0.32329]
[1732039468107,0.107762,92797.0,92796.0,0.32329]
[1732039469428,0.21682455,92797.0,92796.0,0.32329]
[1732039469933,0.10906255,92797.0,92796.0,0.32329]
[1732039470123,0.44032455,92797.0,92796.0,0.32329]
[1732039470316,0.44032455,92797.0,92757.0,0.0017108]
[1732039470317,0.107799,92765.0,92757.0,0.0017108]
[1732039470733,0.107799,92765.0,92757.0,0.1095178]
[1732039471168,0.107799,92765.0,92757.0,0.0017108]
[1732039472058,0.21686155,92765.0,92757.0,0.0017108]
[1732039472735,0.26165125,92765.0,92757.0,0.0017108]
[1732039473829,0.36165125,92765.0,92757.0,0.0017108]
[1732039475579,0.36365125,92765.0,92757.0,0.0017108]
[1732039476678,0.51945747,92765.0,92757.0,0.0017108]
[1732039476893,0.52945747,92765.0,92757.0,0.0017108]
[1732039477565,0.327507,92758.0,92757.0,0.0017108]
[1732039477816,0.327507,92758.0,92749.0,0.0017088]
[1732039477817,0.250816,92750.0,92749.0,0.0017088]
[1732039478026,0.48468477,92750.0,92749.0,0.0017088]
[1732039478654,0.64184732,92750.0,92749.0,0.0017088]
[1732039479084,0.53278477,92750.0,92749.0,0.0017088]
[1732039479711,0.107837,92732.0,92712.0,0.10786]
[1732039479923,0.34170577,92732.0,92717.0,0.107854]
[1732039480504,0.34170577,92732.0,92711.0,0.0004]
[1732039480505,0.01,92725.0,92724.0,0.0009102]
[1732039480720,0.48471377,92725.0,92724.0,0.0001102]
[1732039481385,0.47471377,92725.0,92724.0,0.0001102]
[1732039481838,0.107845,92725.0,92724.0,0.0001102]
[1732039482053,0.12480622,92739.0,92724.0,0.0001102]
[1732039482054,0.215664,92737.0,92724.0,0.0001102]
[1732039482274,0.107841,92729.0,92724.0,0.1079562]
[1732039482542,0.107827,92741.0,92733.0,0.107835]
[1732039482776,0.10906255,92745.0,92724.0,0.0001102]
[1732039483017,0.107832,92737.0,92731.0,0.215675]
[1732039483258,0.215649,92743.0,92731.0,0.107837]
[1732039483488,0.04295635,92746.0,92724.0,0.0001102]
[1732039483706,0.107817,92750.0,92743.0,0.107824]
[1732039483933,0.04364757,92750.0,92745.0,0.107821]
[1732039484153,0.107815,92751.0,92744.0,0.107823]
[1732039484381,0.107816,92750.0,92738.0,0.107829]
[1732039484617,0.107822,92745.0,92735.0,0.082]
[1732039484837,0.107822,92745.0,92740.0,0.107828]
[1732039485068,0.107821,92746.0,92740.0,0.107828]
[1732039485295,0.10906255,92751.0,92735.0,0.082]
[1732039485558,0.04360383,92751.0,92750.0,0.107816]
[1732039486022,0.04360383,92751.0,92735.0,0.082]
[1732039486023,0.1,92754.0,92735.0,0.082]
[1732039486239,0.207812,92754.0,92748.0,0.107818]
[1732039486934,0.04322759,92764.0,92763.0,0.107801]
[1732039487144,0.04322759,92764.0,92723.0,0.18562946]
[1732039487145,0.23372946,92789.0,92759.0,0.0812]
[1732039487366,0.04432792,92767.0,92766.0,0.107798]
[1732039487594,0.10906255,92781.0,92772.0,0.10779]
[1732039487823,0.107785,92777.0,92772.0,0.10779]
[1732039488039,0.215566,92779.0,92770.0,0.107792]
[1732039488294,0.215558,92783.0,92759.0,0.0812]
[1732039488295,0.1,92776.0,92759.0,0.0812]
[1732039488521,0.1,92774.0,92770.0,0.107793]
[1732039488729,0.207785,92777.0,92770.0,0.107792]
[1732039489111,0.207785,92777.0,92770.0,0.215585]
[1732039489743,0.1,92777.0,92772.0,0.10779]
[1732039490155,0.207785,92777.0,92770.0,0.215584]
[1732039490359,0.23372946,92789.0,92770.0,0.215584]
[1732039490360,0.19562946,92798.0,92770.0,0.107792]
[1732039490568,0.10906255,92794.0,92781.0,0.107779]
[1732039490771,0.10906255,92794.0,92759.0,0.0812]
[1732039490772,0.107778,92784.0,92777.0,0.107784]
[1732039491092,0.215533,92793.0,92777.0,0.107784]
[1732039491294,0.107773,92788.0,92781.0,0.10778]
[1732039491451,0.10906255,92788.0,92771.0,0.107791]
[1732039491665,0.107786,92776.0,92759.0,0.0812]
[1732039491873,0.215582,92772.0,92761.0,0.107803]
[1732039492087,0.107796,92768.0,92761.0,0.107803]
[1732039492289,0.215582,92772.0,92763.0,0.107801]
[1732039492500,0.107793,92770.0,92764.0,0.107799]
[1732039492911,0.107793,92771.0,92760.0,0.107805]
[1732039493171,0.107793,92771.0,92764.0,0.107799]
[1732039493600,0.107793,92771.0,92765.0,0.107799]
[1732039493811,0.107792,92771.0,92765.0,0.107799]
[1732039494011,0.215572,92777.0,92765.0,0.107799]
[1732039494219,0.107792,92771.0,92765.0,0.107799]
[1732039494436,0.107793,92770.0,92765.0,0.107799]
[1732039495737,0.10906255,92776.0,92762.0,0.107802]
[1732039495946,0.10906255,92776.0,92759.0,0.0812]
[1732039495947,0.10906255,92776.0,92770.0,0.107793]
[1732039496172,0.107787,92775.0,92768.0,0.107795]
[1732039496392,0.10906255,92774.0,92768.0,0.107795]
[1732039496641,0.21685055,92774.0,92768.0,0.107795]
[1732039496863,0.04406878,92782.0,92769.0,0.107794]
[1732039497147,0.215563,92780.0,92771.0,0.107791]
[1732039497363,0.5483,92791.0,92783.0,0.107777]
[1732039497580,0.04374526,92785.0,92784.0,0.107776]
[1732039497798,0.1,92788.0,92759.0,0.189006]
[1732039498064,0.107776,92785.0,92779.0,0.107782]
[1732039498286,0.107777,92785.0,92777.0,0.107784]
[1732039498502,0.10906255,92787.0,92777.0,0.107784]
[1732039498943,0.107776,92785.0,92778.0,0.107783]
[1732039499177,0.107777,92784.0,92778.0,0.107783]
[1732039499661,0.107775,92786.0,92780.0,0.107781]
[1732039499864,0.10906255,92787.0,92779.0,0.107782]
[1732039500285,0.107776,92785.0,92779.0,0.107782]
[1732039500573,0.10906255,92784.0,92760.0,0.107805]
[1732039500807,0.10906255,92784.0,92759.0,0.0812]
[1732039500808,0.107781,92781.0,92772.0,0.10779]
[1732039500995,0.107782,92780.0,92774.0,0.107787]
[1732039501216,0.1086384,92780.0,92774.0,0.107787]
[1732039501433,0.0008564,92780.0,92776.0,0.107786]
[1732039501654,0.0008564,92780.0,92777.0,0.107784]
[1732039502072,0.107785,92777.0,92771.0,0.107791]
[1732039502281,0.10906255,92779.0,92775.0,0.107787]
[1732039502484,0.21684655,92779.0,92773.0,0.107789]
[1732039502690,0.0008564,92780.0,92759.0,0.0812]
[1732039503138,0.0008564,92780.0,92777.0,0.107784]
[1732039503819,0.0008564,92780.0,92779.0,0.107783]
[1732039504705,0.0008564,92780.0,92779.0,0.185583]
[1732039505327,0.0008564,92780.0,92779.0,0.31028182]
[1732039505758,0.0008564,92780.0,92779.0,0.41934437]
[1732039506223,0.0008564,92780.0,92779.0,0.29464555]
[1732039506849,0.0008564,92780.0,92779.0,0.185583]
[1732039509025,0.0008564,92780.0,92779.0,0.29464555]
[1732039509237,0.0008564,92780.0,92779.0,0.31464555]
[1732039509673,0.0008564,92780.0,92779.0,0.41464555]
[1732039514164,0.0008564,92780.0,92779.0,0.45906371]
[1732039514828,0.0008564,92780.0,92779.0,0.50476371]
[1732039515034,9.9135685,92800.0,92799.0,0.107759]
[1732039517201,9.9135685,92800.0,92799.0,0.21682155]
[1732039517667,9.9135685,92800.0,92799.0,0.107759]
[1732039523283,9.9135685,92800.0,92799.0,0.30002155]
[1732039523502,9.9135685,92800.0,92799.0,0.31002155]
[1732039523737,9.9135685,92800.0,92799.0,0.35862155]
[1732039523945,9.9135685,92800.0,92799.0,0.36862155]
[1732039524382,9.9135685,92800.0,92799.0,0.46862155]
[1732039525305,9.8920165,92800.0,92799.0,0.49162155]
[1732039525508,9.8489125,92800.0,92799.0,0.53830468]
[1732039525711,9.7411525,92800.0,92799.0,0.53630468]
[1732039525932,9.7411525,92800.0,92799.0,0.53801648]
[1732039526145,9.7420084,92800.0,92799.0,0.54001648]
[1732039526368,9.7204564,92800.0,92799.0,0.53801648]
[1732039526788,9.7204564,92800.0,92799.0,0.54001648]
[1732039526995,9.7204564,92800.0,92799.0,0.53801648]
[1732039527225,9.7204564,92800.0,92799.0,0.35439063]
[1732039527440,9.7204564,92800.0,92799.0,0.46414963]
[1732039527670,9.7204564,92800.0,92799.0,0.46214963]
[1732039529642,9.7204564,92800.0,92799.0,0.78542963]
[1732039530059,9.6989044,92800.0,92799.0,0.78542963]
[1732039530274,9.6099044,92800.0,92799.0,0.78542963]
[1732039531845,9.6099044,92800.0,92799.0,0.76242963]
[1732039532075,9.6099044,92800.0,92799.0,0.71382963]
[1732039532992,9.5021444,92800.0,92799.0,0.76052963]
[1732039533225,9.5021444,92800.0,92799.0,0.76252963]
[1732039533475,9.5021444,92800.0,92799.0,0.71382963]
[1732039533691,9.5021444,92800.0,92799.0,0.83852845]
[1732039534355,9.5021444,92800.0,92799.0,0.86152845]
[1732039534579,9.5021444,92800.0,92799.0,0.86352845]
[1732039534803,9.5021444,92800.0,92799.0,0.86152845]
[1732039535020,9.4159364,92800.0,92799.0,0.86152845]
[1732039535301,9.3943844,92800.0,92799.0,0.86352845]
[1732039535504,9.2866244,92800.0,92799.0,0.86152845]
[1732039535933,8.77634521,92800.0,92799.0,0.90732845]
[1732039536148,8.74712502,92800.0,92799.0,0.90732845]
[1732039536377,8.67267178,92800.0,92799.0,1.03402727]
[1732039536646,8.31171378,92800.0,92799.0,0.98622727]
[1732039536852,8.23361378,92800.0,92799.0,0.82082845]
[1732039537067,8.19474378,92800.0,92799.0,0.82082845]
[1732039537556,7.97572779,92800.0,92799.0,0.79652845]
[1732039537778,7.97572779,92800.0,92799.0,0.79852845]
[1732039538495,7.86796779,92800.0,92799.0,0.79852845]
[1732039539459,7.86796779,92800.0,92799.0,0.53062963]
[1732039539682,7.86796779,92800.0,92799.0,0.53262963]
[1732039539915,7.86796779,92800.0,92799.0,0.53062963]
[1732039540620,7.86796779,92800.0,92799.0,0.63062963]
[1732039540835,7.86796779,92800.0,92799.0,0.65362963]
[1732039541501,7.76020779,92800.0,92799.0,0.65562963]
[1732039541748,7.69555179,92800.0,92799.0,0.65562963]
[1732039542432,4.58799179,92800.0,92799.0,0.65562963]
[1732039542870,4.58799179,92800.0,92799.0,0.6582199]
[1732039543520,4.54488779,92800.0,92799.0,0.6582199]
[1732039543729,4.48023179,92800.0,92799.0,0.6582199]
[1732039544372,4.31491794,92800.0,92799.0,0.6582199]
[1732039544622,4.15082672,92800.0,92799.0,0.6562199]
[1732039544838,4.06182672,92800.0,92799.0,0.6582199]
[1732039545477,3.95406672,92800.0,92799.0,0.6582199]
[1732039545700,3.95406672,92800.0,92799.0,0.6562199]
[1732039546362,3.95406672,92800.0,92799.0,0.6462199]
[1732039546595,3.95406672,92800.0,92799.0,0.6582199]
[1732039546846,3.95406672,92800.0,92799.0,0.6562199]
[1732039547095,3.95406672,92800.0,92799.0,0.6582199]
[1732039547540,3.95406672,92800.0,92799.0,0.6482199]
[1732039547766,3.95406672,92800.0,92799.0,0.6562199]
[1732039547767,3.81942473,92800.0,92799.0,0.6562199]
[1732039549548,3.81942473,92800.0,92799.0,0.6582199]
[1732039549782,3.81942473,92800.0,92799.0,0.6562199]
[1732039550213,3.76692473,92800.0,92799.0,0.6562199]
[1732039551087,3.65916473,92800.0,92799.0,0.6562199]
[1732039551494,3.65916473,92800.0,92799.0,0.6582199]
[1732039551709,3.65916473,92800.0,92799.0,0.6562199]
[1732039551955,3.65916473,92800.0,92799.0,0.6352199]
[1732039552820,3.65916473,92800.0,92799.0,0.6332199]
[1732039553293,3.73786473,92800.0,92799.0,0.5232199]
[1732039553514,3.78716473,92800.0,92799.0,0.32758207]
[1732039553768,3.89492273,92800.0,92799.0,0.1968918]
[1732039553971,3.78716473,92800.0,92799.0,0.1968918]
[1732039554182,3.78716473,92800.0,92799.0,0.2938748]
[1732039554615,3.78716473,92800.0,92799.0,0.2830988]
[1732039555129,3.73786473,92800.0,92799.0,0.51216135]
[1732039555345,3.73786473,92800.0,92799.0,0.50216135]
[1732039555568,3.53786473,92800.0,92799.0,0.5050089]
[1732039555782,3.53786473,92800.0,92799.0,0.50216135]
[1732039555975,3.53786473,92800.0,92799.0,0.50532598]
[1732039558141,3.53786473,92800.0,92799.0,0.50032598]
[1732039559878,3.53786473,92800.0,92799.0,0.28126343]
[1732039559879,3.44886473,92800.0,92799.0,0.28126343]
[1732039560106,3.49766473,92800.0,92799.0,0.28126343]
[1732039560311,3.49766473,92800.0,92799.0,0.2780988]
[1732039561173,3.49766473,92800.0,92799.0,0.27981]
[1732039562937,3.37016473,92800.0,92799.0,0.39887255]
[1732039563142,3.37016473,92800.0,92799.0,0.40887255]
[1732039563378,3.37016473,92800.0,92799.0,0.40175807]
[1732039564083,3.37016473,92800.0,92799.0,0.39887255]
[1732039564280,3.37016473,92800.0,92799.0,0.44323892]
[1732039564484,3.37016473,92800.0,92799.0,0.47623892]
[1732039564932,3.28395673,92800.0,92799.0,0.70293774]
[1732039565175,3.26240473,92800.0,92799.0,0.70093774]
[1732039565388,3.26240473,92800.0,92799.0,0.70579981]
[1732039565651,3.15464473,92800.0,92799.0,0.70579981]
[1732039565869,3.15464473,92800.0,92799.0,0.70379981]
[1732039566528,3.04688473,92800.0,92799.0,0.70379981]
[1732039567160,3.03501693,92800.0,92799.0,0.70379981]
[1732039567410,2.99191293,92800.0,92799.0,0.70379981]
[1732039567651,2.92725693,92800.0,92799.0,0.70379981]
[1732039567859,2.92725693,92800.0,92799.0,0.70579981]
[1732039568071,2.92725693,92800.0,92799.0,0.55610099]
[1732039568532,2.92725693,92800.0,92799.0,0.54610099]
[1732039569033,2.92725693,92800.0,92799.0,0.55610099]
[1732039569467,2.92725693,92800.0,92799.0,0.44610099]
[1732039570357,2.92725693,92800.0,92799.0,0.46910099]
[1732039570580,2.92725693,92800.0,92799.0,0.47910099]
[1732039570796,2.92725693,92800.0,92799.0,0.46910099]
[1732039571048,2.92725693,92800.0,92799.0,0.40173462]
[1732039571481,2.92725693,92800.0,92799.0,0.39887255]
[1732039571707,2.92725693,92800.0,92799.0,0.40186303]
[1732039572869,2.92725693,92800.0,92799.0,0.28280048]
[1732039573099,2.97315693,92800.0,92799.0,0.28280048]
[1732039573322,2.97315693,92800.0,92799.0,0.28981]
[1732039574006,2.92725693,92800.0,92799.0,0.43387255]
[1732039574229,2.92725693,92800.0,92799.0,0.43187255]
[1732039574439,2.92725693,92800.0,92799.0,0.43486713]
[1732039574862,2.83825693,92800.0,92799.0,0.43486713]
[1732039575714,2.81670493,92800.0,92799.0,0.43486713]
[1732039575936,2.81670493,92800.0,92799.0,0.53486713]
[1732039576700,2.81670493,92800.0,92799.0,0.53686713]
[1732039576914,2.81670493,92800.0,92799.0,0.53486713]
[1732039577998,2.70894493,92800.0,92799.0,0.53486713]
[1732039578431,2.68739293,92800.0,92799.0,0.53486713]
[1732039578684,2.62273693,92800.0,92799.0,0.53486713]
[1732039578902,2.60118493,92800.0,92799.0,0.53486713]
[1732039579379,2.57963293,92800.0,92799.0,0.53486713]
[1732039579597,2.49342493,92800.0,92799.0,0.53486713]
[1732039580039,2.49342493,92800.0,92799.0,0.53493294]
[1732039580541,2.37350493,92800.0,92799.0,0.53293294]
[1732039581461,2.30884893,92800.0,92799.0,0.53293294]
[1732039581686,2.26574493,92800.0,92799.0,0.53293294]
[1732039582438,2.22264093,92800.0,92799.0,0.53293294]
[1732039582873,2.20108893,92800.0,92799.0,0.53293294]
[1732039583547,2.11488093,92800.0,92799.0,0.53493294]
[1732039583774,2.05345775,92800.0,92799.0,0.53493294]
[1732039583994,2.05345775,92800.0,92799.0,0.53293294]
[1732039584633,1.98880175,92800.0,92799.0,0.53493294]
[1732039585521,1.94569775,92800.0,92799.0,0.53493294]
[1732039585720,1.92414575,92800.0,92799.0,0.53493294]
[1732039586150,1.90259375,92800.0,92799.0,0.53493294]
[1732039586600,1.79483375,92800.0,92799.0,0.25876833]
[1732039586837,1.79483375,92800.0,92799.0,0.34497533]
[1732039587068,1.79483375,92800.0,92799.0,0.34297533]
[1732039587502,1.77328175,92800.0,92799.0,0.34297533]
[1732039587946,1.73017775,92800.0,92799.0,0.34297533]
[1732039588182,1.70862575,92800.0,92799.0,0.34297533]
[1732039588411,1.61648652,92800.0,92799.0,0.34297533]
[1732039588848,1.55183052,92800.0,92799.0,0.34297533]
[1732039589095,1.41784621,92800.0,92799.0,0.66625533]
[1732039589536,1.35319021,92800.0,92799.0,0.66825533]
[1732039589749,1.31008621,92800.0,92799.0,0.66625533]
[1732039590187,1.22108621,92800.0,92799.0,0.66625533]
[1732039590437,1.19953421,92800.0,92799.0,0.66625533]
[1732039590653,1.11332621,92800.0,92799.0,0.66625533]
[1732039591354,1.09177421,92800.0,92799.0,0.66625533]
[1732039591770,1.00556621,92800.0,92799.0,0.66625533]
[1732039592236,0.99195621,92800.0,92799.0,0.66625533]
[1732039592453,0.86334071,92800.0,92799.0,0.66625533]
[1732039592661,0.82023671,92800.0,92799.0,0.66825533]
[1732039592840,0.82023671,92800.0,92799.0,0.7927971]
[1732039593100,0.80596671,92800.0,92799.0,0.7927971]
[1732039593310,0.80596671,92800.0,92799.0,0.6677971]
[1732039594203,0.80596671,92800.0,92799.0,0.6354691]
[1732039594414,0.93566671,92800.0,92799.0,0.6354691]
[1732039595118,0.93566671,92800.0,92799.0,0.6254691]
[1732039595579,0.93566671,92800.0,92799.0,0.7354691]
[1732039596899,0.93566671,92800.0,92799.0,0.7254691]
[1732039597115,0.93566671,92800.0,92799.0,0.59092733]
[1732039597348,0.93566671,92800.0,92799.0,0.32798578]
[1732039597570,0.93566671,92800.0,92799.0,0.20240699]
[1732039597571,1.04342471,92800.0,92799.0,0.20240699]
[1732039598058,0.93566671,92800.0,92799.0,0.19988578]
[1732039598749,0.93566671,92800.0,92799.0,0.20224198]
[1732039599851,0.93566671,92800.0,92799.0,0.25612098]
[1732039600062,0.93566671,92800.0,92799.0,0.25376478]
[1732039600294,0.93566671,92800.0,92799.0,0.25612235]
[1732039600747,0.93566671,92800.0,92799.0,0.20224335]
[1732039601427,0.93566671,92800.0,92799.0,0.07414335]
[1732039601428,1.04342471,92800.0,92799.0,0.07414335]
[1732039601884,1.04342471,92800.0,92799.0,0.07178578]
[1732039602110,0.80596671,92800.0,92766.0,0.01]
[1732039602310,0.215562,92781.0,92765.0,0.01]
[1732039602564,0.215562,92781.0,92758.0,0.01]
[1732039602565,0.107783,92779.0,92775.0,0.32332]
[1732039602800,0.215569,92778.0,92775.0,0.32332]
[1732039603017,0.107785,92777.0,92775.0,0.32332]
[1732039603231,0.0776,92779.0,92775.0,0.32332]
[1732039603482,0.107786,92776.0,92775.0,0.32332]
[1732039603703,0.0776,92779.0,92775.0,0.32332]
[1732039603941,0.0776,92779.0,92778.0,0.053892]
[1732039604442,0.0776,92790.0,92789.0,0.053885]
[1732039604660,0.0776,92790.0,92787.0,0.053886]
[1732039604884,0.0776,92790.0,92789.0,0.053885]
[1732039605114,0.0462,92795.0,92787.0,0.063886]
[1732039605115,0.0348,92795.0,92794.0,0.053882]
[1732039605338,0.80596671,92800.0,92789.0,0.43237255]
[1732039605564,0.80596671,92800.0,92799.0,0.053879]
[1732039606031,0.80596671,92800.0,92799.0,0.0562495]
[1732039606256,0.91372471,92800.0,92799.0,0.0023705]
[1732039606944,0.10777,92790.0,92789.0,0.32331]
[1732039607474,0.10777,92790.0,92789.0,0.3255477]
[1732039607681,0.10777,92790.0,92789.0,0.32331]
[1732039607896,0.23357,92790.0,92789.0,0.32558573]
[1732039608351,0.1258,92790.0,92789.0,0.32558573]
[1732039609036,0.0775,92803.0,92797.0,0.05388]
[1732039609263,0.0483,92804.0,92799.0,0.053879]
[1732039609484,0.0483,92810.0,92799.0,0.053879]
[1732039609915,0.0483,92810.0,92799.0,0.05618743]
[1732039611442,0.0472,92821.0,92799.0,0.60852998]
[1732039619150,0.0008557,92823.0,92799.0,0.63352998]
[1732039619783,0.0008557,92823.0,92799.0,0.63152998]
[1732039619968,0.71696671,92800.0,92799.0,0.63352998]
[1732039620192,0.71696671,92800.0,92799.0,0.63152998]
[1732039620560,0.71696671,92800.0,92799.0,0.63352998]
[1732039621912,0.60920671,92800.0,92799.0,0.75822998]
[1732039622346,0.60920671,92800.0,92799.0,0.76022998]
[1732039622632,0.50144671,92800.0,92799.0,0.76022998]
[1732039623547,0.43679071,92800.0,92799.0,0.76022998]
[1732039623963,0.39368671,92800.0,92799.0,0.76022998]
[1732039624382,0.35058271,92800.0,92799.0,0.76022998]
[1732039624585,0.28592671,92800.0,92799.0,0.76022998]
[1732039625206,0.07539587,92800.0,92799.0,0.75822998]
[1732039625416,0.05384487,92800.0,92799.0,0.75822998]
[1732039625599,9.7e-07,92801.0,92800.0,0.274679]
[1732039625832,9.7e-07,92801.0,92800.0,0.70702155]
[1732039626048,9.7e-07,92801.0,92800.0,0.70924041]
[1732039627152,0.0008557,92823.0,92822.0,0.02]
[1732039627386,0.0008557,92823.0,92822.0,0.89418776]
[1732039627667,0.0008557,92823.0,92822.0,0.89639407]
[1732039627870,0.0008557,92823.0,92822.0,0.89439407]
[1732039629162,0.0008557,92823.0,92822.0,0.93703489]
[1732039629657,0.0008557,92823.0,92822.0,1.1222941]
[1732039629860,7e-07,92823.0,92822.0,0.93703489]
[1732039630763,0.00010989,92858.0,92857.0,0.053846]
[1732039631206,0.1263,92864.0,92858.0,0.053845]
[1732039631656,0.1263,92864.0,92858.0,0.05598817]
[1732039632302,0.233984,92864.0,92858.0,0.05598817]
[1732039632532,0.1263,92864.0,92858.0,0.05598817]
[1732039632741,0.1263,92864.0,92858.0,0.37905817]
[1732039634067,0.1263,92864.0,92858.0,0.15205793]
[1732039634292,0.1263,92864.0,92858.0,0.20590293]
[1732039634726,0.0498,92864.0,92858.0,0.20590293]
[1732039634974,0.0397544,92870.0,92864.0,0.053841]